Workbook

Sheet A SAVOIR
B2: FORMULAIRE DE DECLARATION DE LA PATENTE TRANSPORT (DGE)
B4: Ce fichier Excel vous permet de générer un fichier XML à transmettre ensuite sur e-Impôts pour les patentes transport de l'ensemble de vos véhicules.
B6: IMPORTANT : veillez à bien activer les modifications et appliquer les macros ("activer le contenu") à l'ouverture pour pouvoir utiliser ce fichier
B10: Comment générer mon annexe détaillée au format XML ?
B11: #1 | C11: Rendez-vous sur la feuille SAISIE de ce fichier Excel
B12: #2 | C12: Renseignez votre NCC et sélectionnez l'exercice de la déclaration à effectuer
B13: #3 | C13: Remplissez le tableau : > manuellement > ou en procédant par copier/coller depuis un autre fichier Excel (éventuellement exporté de votre système d'information) Eviter les caractères spéciaux du style /, * , ( ), &, ' (apostrophes) : ils seront normalement ignorés, mais pourraient empêcher l'import de votre fichier sur e-Impôts. Eviter également d'introduire plusieurs espaces entre les mots et les lignes entièrement vides ou en partie
B14: #4 | C14: Vérifiez vos saisies puis générez votre fichier XML en cliquant sur le bouton orange : "Génération du XML"
B16: Que faire après avoir généré le fichier XML ?
B17: #5 | C17: Le fichier XML géneré est déposé dans le répertoire /Documents sur votre poste de travail
B18: #6 | C18: Sur e-Impôts, à l'étape 3 de votre déclaration, vous devez importer ce fichier XML dans la section "Transmission des annexes détaillées par EDI"
B19: #7 | C19: Une fois votre fichier chargé, vous pouvez charger les autres pièces jointes si nécessaire (justificatifs divers) et passer à l'étape suivante de votre déclaration. Vous pourrez alors consulter à l'écran le détail des informations importées. Une fois votre télédéclaration transmise, vous pourrez télécharger au format CSV les données que vous avez importées, si vous souhaitez les contrôler.
B20: #8 | C20: Si votre fichier XML est très volumineux et ne peut être importé sur e-Impôts (taille de fichier trop grande), vous pouvez procéder en plusieurs fois et saisir votre annexe détaillée en plusieurs fois. Un bouton spécifique permet de charger des fichiers complémentaires sur e-Impôts sans écraser les fichiers préalablement importés.
C21: Pour information, vous êtes également libre de générer un fichier XML par un autre moyen, si celui-ci respecte scrupuleusement la syntaxe EDI XML e-Impôts et les référentiels présentés dans ce fichier Excel (voir la feuille "referentiels").
B23: Avertissement sur le traitement du fichier
B24: La Direction Générale des Impôts certifie que les calculs de Patente transport intégrés à ce fichier respectent les règles du Code Général des Impôts. Un contrôle a posteriori est réalisé sur les montants des patentes calculés en fonction des caractéristiques de vos véhicules afin d'éviter toute manipulation des fichiers XML EDI générés par ce fichier.

Sheet SAISIE
B1: Version 1
B2: FORMULAIRE DE GENERATION DES FICHIERS XML POUR LA DECLARATION DE LA PATENTE TRANSPORT EN LIGNE
C4: NCC | D4: 1100418F | I4: =IF(S4=0,"","Respecter le format 1234567A, sans espace. Ajoutez des '0' si besoin (ex : 0012345A).") ->  | S4: =IFERROR(IF(LEN(ncc)=8,0,IF(LEN(ncc)=0,0,1)),1) -> 0
C5: Année de déclaration | D5: 2026 | S5: =S4+S7+S6 -> 14
C6: Nature du propriétaire des véhicules | D6: Personne morale | R6: =IF(S6=1,"Impossible de déclarer un fichier vide","") ->  | S6: =IF(COUNTA(C14:C5013)=0,1,0) -> 0
R7: Nombre d'erreurs à corriger sur les lignes détails : | S7: =SUM(S14:S5001) -> 14
C10: Activité | D10: Informations sur le véhicule | O10: Calcul de l'Impôt
B11: # | C11: Nature de l'activité de transport (sélection dans la liste) | D11: Nombre de passagers | E11: Charge utile totale du véhicule | F11: Numéro d'immatriculation | G11: Numéro de chassis | H11: Numéro de carte grise | I11: Marque (sélection dans la liste) | J11: N° série | K11: Puiss-ance CV | L11: Couleur | M11: Date acquisition | N11: Date de mise en service | O11: Droit sur le Chiffre d'Affaires | P11: Montant de l'impôt BIC | Q11: Montant total à payer
B12: 1
N13: TOTAL | O13: =SUM(O14:O5013) -> 408000 | P13: =SUM(P14:P5013) -> 0 | Q13: =SUM(Q14:Q1001) -> 408000
B14: =B13+1 -> 1 | C14: Transport privé de marchandises (pour son propre compte) | D14: 5 | E14: 1 | F14: AB-501-BH-01 | G14: W09PRS218CTW86281 | H14: CG10703648 | I14: Autre | J14: NA-WER | K14: 0 | L14: Blanc | M14: 2026-04-01 | N14: 2000-01-15 | O14: =IFERROR(VLOOKUP(C14,refActivitePatente,2,FALSE)+VLOOKUP(C14,refActivitePatente,3,FALSE)*D14+VLOOKUP(C14,refActivitePatente,4,FALSE)*MAX(E14-VLOOKUP(C14,refActivitePatente,5,FALSE),0),"") -> 24000 | P14: =IFERROR(VLOOKUP(O14,refPatenteBic,3,TRUE)*VLOOKUP(personneType,refPersonneType,2,FALSE)*VLOOKUP(C14,refActivitePatente,6,FALSE),"") -> 0 | Q14: =SUM(O14:P14) -> 24000 | R14: =COUNTA(C14:N14) -> 12 | S14: =IF(R14=0,"",IF(OR(COUNTIF(listeActivite,C14)<1,OR(AND(SUM(D14:E14)=0,AND(LEFT(C14,4)<>"Corb",LEFT(C14,4)<>"Marc")),AND(E14<1,RIGHT(C14,7)="andises"),AND(NOT(ISERROR(SEARCH("*personne*",C14))),D14<1)),ISBLANK(F14),AND(COUNTIF(listeMarque,I14)<1,MID(C14,11,8)<>"maritime"),ISBLANK(K14),ISBLANK(L14),ISBLANK(M14),ISBLANK(N14),COUNTIF($F$14:$F$10000,F14)>1),1,0)) -> 0
B15: 2 | C15: Transport privé de marchandises (pour son propre compte) | D15: 5 | E15: 1 | F15: AB-052-BH-01 | G15: XLRAS85MC0E952520 | H15: CG10691432 | I15: Autre | J15: CF85 410 | K15: 35 | L15: Blanc | M15: 2026-04-01 | N15: 2026-04-17 | O15: 24000 | P15: 0 | Q15: =SUM(O15:P15) -> 24000 | R15: =COUNTA(C15:N15) -> 12 | S15: 0
B16: 3 | C16: Transport privé de marchandises (pour son propre compte) | D16: 5 | E16: 1 | F16: AB-577-AN-01 | G16: WDB9506431L187815 | H16: CG10700470 | I16: Mercedes-Benz | J16: ACTROS | K16: 32 | L16: Blanc | M16: 2026-04-01 | N16: 2026-03-04 | O16: 24000 | P16: 0 | Q16: 24000 | R16: 12 | S16: 0
B17: 4 | C17: Transport privé de marchandises (pour son propre compte) | D17: 6 | O17: 24000 | P17: 0 | Q17: 24000 | R17: 2 | S17: 1
B18: 5 | C18: Transport privé de marchandises (pour son propre compte) | D18: 5 | O18: 24000 | P18: 0 | Q18: 24000 | R18: 2 | S18: 1
B19: 6 | C19: Transport privé de marchandises (pour son propre compte) | D19: 5 | O19: 24000 | P19: 0 | Q19: 24000 | R19: 2 | S19: 1
B20: 7 | C20: Transport privé de marchandises (pour son propre compte) | D20: 5 | O20: 24000 | P20: 0 | Q20: 24000 | R20: 2 | S20: 1
B21: 8 | C21: Transport privé de marchandises (pour son propre compte) | D21: 2 | O21: 24000 | P21: 0 | Q21: 24000 | R21: 2 | S21: 1
B22: 9 | C22: Transport privé de marchandises (pour son propre compte) | D22: 5 | O22: 24000 | P22: 0 | Q22: 24000 | R22: 2 | S22: 1
B23: 10 | C23: Transport privé de marchandises (pour son propre compte) | D23: 5 | O23: 24000 | P23: 0 | Q23: 24000 | R23: 2 | S23: 1
B24: 11 | C24: Transport privé de marchandises (pour son propre compte) | D24: 5 | O24: 24000 | P24: 0 | Q24: 24000 | R24: 2 | S24: 1
B25: 12 | C25: Transport privé de marchandises (pour son propre compte) | D25: 5 | O25: 24000 | P25: 0 | Q25: 24000 | R25: 2 | S25: 1
B26: 13 | C26: Transport privé de marchandises (pour son propre compte) | D26: 5 | O26: 24000 | P26: 0 | Q26: 24000 | R26: 2 | S26: 1
B27: 14 | C27: Transport privé de marchandises (pour son propre compte) | D27: 5 | O27: 24000 | P27: 0 | Q27: 24000 | R27: 2 | S27: 1
B28: 15 | C28: Transport privé de marchandises (pour son propre compte) | D28: 3 | O28: 24000 | P28: 0 | Q28: 24000 | R28: 2 | S28: 1
B29: 16 | C29: Transport privé de marchandises (pour son propre compte) | D29: 5 | O29: 24000 | P29: 0 | Q29: 24000 | R29: 2 | S29: 1
B30: 17 | C30: Transport privé de marchandises (pour son propre compte) | D30: 5 | O30: 24000 | P30: 0 | Q30: 24000 | R30: 2 | S30: 1
B31: 18 | Q31: 0 | R31: 0
B32: 19 | Q32: 0 | R32: 0
B33: 20 | Q33: 0 | R33: 0
B34: 21 | Q34: 0 | R34: 0
B35: 22 | Q35: 0 | R35: 0
B36: 23 | Q36: 0 | R36: 0
B37: 24 | Q37: 0 | R37: 0
B38: 25 | Q38: 0 | R38: 0
B39: 26 | Q39: 0 | R39: 0
B40: 27 | Q40: 0 | R40: 0
B41: 28 | Q41: 0 | R41: 0
B42: 29 | Q42: 0 | R42: 0
B43: 30 | Q43: 0 | R43: 0
B44: 31 | Q44: 0 | R44: 0
B45: 32 | Q45: 0 | R45: 0
B46: 33 | Q46: 0 | R46: 0
B47: 34 | Q47: 0 | R47: 0
B48: 35 | Q48: 0 | R48: 0
B49: 36 | Q49: 0 | R49: 0
B50: 37 | Q50: 0 | R50: 0
B51: 38 | Q51: 0 | R51: 0
B52: 39 | Q52: 0 | R52: 0
B53: 40 | Q53: 0 | R53: 0
B54: 41 | Q54: 0 | R54: 0
B55: 42 | Q55: 0 | R55: 0
B56: 43 | Q56: 0 | R56: 0
B57: 44 | Q57: 0 | R57: 0
B58: 45 | Q58: 0 | R58: 0
B59: 46 | Q59: 0 | R59: 0
B60: 47 | Q60: 0 | R60: 0
B61: 48 | Q61: 0 | R61: 0
B62: 49 | Q62: 0 | R62: 0
B63: 50 | Q63: 0 | R63: 0
B64: 51 | Q64: 0 | R64: 0
B65: 52 | Q65: 0 | R65: 0
B66: 53 | Q66: 0 | R66: 0
B67: 54 | Q67: 0 | R67: 0
B68: 55 | Q68: 0 | R68: 0
B69: 56 | Q69: 0 | R69: 0
B70: 57 | Q70: 0 | R70: 0
B71: 58 | Q71: 0 | R71: 0
B72: 59 | Q72: 0 | R72: 0
B73: 60 | Q73: 0 | R73: 0
B74: 61 | Q74: 0 | R74: 0
B75: 62 | Q75: 0 | R75: 0
B76: 63 | Q76: 0 | R76: 0
B77: 64 | Q77: 0 | R77: 0
B78: =B77+1 -> 65 | O78: =IFERROR(VLOOKUP(C78,refActivitePatente,2,FALSE)+VLOOKUP(C78,refActivitePatente,3,FALSE)*D78+VLOOKUP(C78,refActivitePatente,4,FALSE)*MAX(E78-VLOOKUP(C78,refActivitePatente,5,FALSE),0),"") ->  | P78: =IFERROR(VLOOKUP(O78,refPatenteBic,3,TRUE)*VLOOKUP(personneType,refPersonneType,2,FALSE)*VLOOKUP(C78,refActivitePatente,6,FALSE),"") ->  | Q78: 0 | R78: =COUNTA(C78:N78) -> 0 | S78: =IF(R78=0,"",IF(OR(COUNTIF(listeActivite,C78)<1,OR(AND(SUM(D78:E78)=0,AND(LEFT(C78,4)<>"Corb",LEFT(C78,4)<>"Marc")),AND(E78<1,RIGHT(C78,7)="andises"),AND(NOT(ISERROR(SEARCH("*personne*",C78))),D78<1)),ISBLANK(F78),AND(COUNTIF(listeMarque,I78)<1,MID(C78,11,8)<>"maritime"),ISBLANK(K78),ISBLANK(L78),ISBLANK(M78),ISBLANK(N78),COUNTIF($F$14:$F$10000,F78)>1),1,0)) -> 
B79: 66 | Q79: =SUM(O79:P79) -> 0 | R79: 0
B80: 67 | Q80: 0 | R80: 0
B81: 68 | Q81: 0 | R81: 0
B82: 69 | Q82: 0 | R82: 0
B83: 70 | Q83: 0 | R83: 0
B84: 71 | Q84: 0 | R84: 0
B85: 72 | Q85: 0 | R85: 0
B86: 73 | Q86: 0 | R86: 0
B87: 74 | Q87: 0 | R87: 0
B88: 75 | Q88: 0 | R88: 0
B89: 76 | Q89: 0 | R89: 0
B90: 77 | Q90: 0 | R90: 0
B91: 78 | Q91: 0 | R91: 0
B92: 79 | Q92: 0 | R92: 0
B93: 80 | Q93: 0 | R93: 0
B94: 81 | Q94: 0 | R94: 0
B95: 82 | Q95: 0 | R95: 0
B96: 83 | Q96: 0 | R96: 0
B97: 84 | Q97: 0 | R97: 0
B98: 85 | Q98: 0 | R98: 0
B99: 86 | Q99: 0 | R99: 0
B100: 87 | Q100: 0 | R100: 0
B101: 88 | Q101: 0 | R101: 0
B102: 89 | Q102: 0 | R102: 0
B103: 90 | Q103: 0 | R103: 0
B104: 91 | Q104: 0 | R104: 0
B105: 92 | Q105: 0 | R105: 0
B106: 93 | Q106: 0 | R106: 0
B107: 94 | Q107: 0 | R107: 0
B108: 95 | Q108: 0 | R108: 0
B109: 96 | Q109: 0 | R109: 0
B110: 97 | Q110: 0 | R110: 0
B111: 98 | Q111: 0 | R111: 0
B112: 99 | Q112: 0 | R112: 0
B113: 100 | Q113: 0 | R113: 0
B114: 101 | Q114: 0 | R114: 0
B115: 102 | Q115: 0 | R115: 0
B116: 103 | Q116: 0 | R116: 0
B117: 104 | Q117: 0 | R117: 0
B118: 105 | Q118: 0 | R118: 0
B119: 106 | Q119: 0 | R119: 0
B120: 107 | Q120: 0 | R120: 0
B121: 108 | Q121: 0 | R121: 0
B122: 109 | Q122: 0 | R122: 0
B123: 110 | Q123: 0 | R123: 0
B124: 111 | Q124: 0 | R124: 0
B125: 112 | Q125: 0 | R125: 0
B126: 113 | Q126: 0 | R126: 0
B127: 114 | Q127: 0 | R127: 0
B128: 115 | Q128: 0 | R128: 0
B129: 116 | Q129: 0 | R129: 0
B130: 117 | Q130: 0 | R130: 0
B131: 118 | Q131: 0 | R131: 0
B132: 119 | Q132: 0 | R132: 0
B133: 120 | Q133: 0 | R133: 0
B134: 121 | Q134: 0 | R134: 0
B135: 122 | Q135: 0 | R135: 0
B136: 123 | Q136: 0 | R136: 0
B137: 124 | Q137: 0 | R137: 0
B138: 125 | Q138: 0 | R138: 0
B139: 126 | Q139: 0 | R139: 0
B140: 127 | Q140: 0 | R140: 0
B141: 128 | Q141: 0 | R141: 0
B142: =B141+1 -> 129 | O142: =IFERROR(VLOOKUP(C142,refActivitePatente,2,FALSE)+VLOOKUP(C142,refActivitePatente,3,FALSE)*D142+VLOOKUP(C142,refActivitePatente,4,FALSE)*MAX(E142-VLOOKUP(C142,refActivitePatente,5,FALSE),0),"") ->  | P142: =IFERROR(VLOOKUP(O142,refPatenteBic,3,TRUE)*VLOOKUP(personneType,refPersonneType,2,FALSE)*VLOOKUP(C142,refActivitePatente,6,FALSE),"") ->  | Q142: 0 | R142: =COUNTA(C142:N142) -> 0 | S142: =IF(R142=0,"",IF(OR(COUNTIF(listeActivite,C142)<1,OR(AND(SUM(D142:E142)=0,AND(LEFT(C142,4)<>"Corb",LEFT(C142,4)<>"Marc")),AND(E142<1,RIGHT(C142,7)="andises"),AND(NOT(ISERROR(SEARCH("*personne*",C142))),D142<1)),ISBLANK(F142),AND(COUNTIF(listeMarque,I142)<1,MID(C142,11,8)<>"maritime"),ISBLANK(K142),ISBLANK(L142),ISBLANK(M142),ISBLANK(N142),COUNTIF($F$14:$F$10000,F142)>1),1,0)) -> 
B143: 130 | Q143: =SUM(O143:P143) -> 0 | R143: 0
B144: 131 | Q144: 0 | R144: 0
B145: 132 | Q145: 0 | R145: 0
B146: 133 | Q146: 0 | R146: 0
B147: 134 | Q147: 0 | R147: 0
B148: 135 | Q148: 0 | R148: 0
B149: 136 | Q149: 0 | R149: 0
B150: 137 | Q150: 0 | R150: 0
B151: 138 | Q151: 0 | R151: 0
B152: 139 | Q152: 0 | R152: 0
B153: 140 | Q153: 0 | R153: 0
B154: 141 | Q154: 0 | R154: 0
B155: 142 | Q155: 0 | R155: 0
B156: 143 | Q156: 0 | R156: 0
B157: 144 | Q157: 0 | R157: 0
B158: 145 | Q158: 0 | R158: 0
B159: 146 | Q159: 0 | R159: 0
B160: 147 | Q160: 0 | R160: 0
B161: 148 | Q161: 0 | R161: 0
B162: 149 | Q162: 0 | R162: 0
B163: 150 | Q163: 0 | R163: 0
B164: 151 | Q164: 0 | R164: 0
B165: 152 | Q165: 0 | R165: 0
B166: 153 | Q166: 0 | R166: 0
B167: 154 | Q167: 0 | R167: 0
B168: 155 | Q168: 0 | R168: 0
B169: 156 | Q169: 0 | R169: 0
B170: 157 | Q170: 0 | R170: 0
B171: 158 | Q171: 0 | R171: 0
B172: 159 | Q172: 0 | R172: 0
B173: 160 | Q173: 0 | R173: 0
B174: 161 | Q174: 0 | R174: 0
B175: 162 | Q175: 0 | R175: 0
B176: 163 | Q176: 0 | R176: 0
B177: 164 | Q177: 0 | R177: 0
B178: 165 | Q178: 0 | R178: 0
B179: 166 | Q179: 0 | R179: 0
B180: 167 | Q180: 0 | R180: 0
B181: 168 | Q181: 0 | R181: 0
B182: 169 | Q182: 0 | R182: 0
B183: 170 | Q183: 0 | R183: 0
B184: 171 | Q184: 0 | R184: 0
B185: 172 | Q185: 0 | R185: 0
B186: 173 | Q186: 0 | R186: 0
B187: 174 | Q187: 0 | R187: 0
B188: 175 | Q188: 0 | R188: 0
B189: 176 | Q189: 0 | R189: 0
B190: 177 | Q190: 0 | R190: 0
B191: 178 | Q191: 0 | R191: 0
B192: 179 | Q192: 0 | R192: 0
B193: 180 | Q193: 0 | R193: 0
B194: 181 | Q194: 0 | R194: 0
B195: 182 | Q195: 0 | R195: 0
B196: 183 | Q196: 0 | R196: 0
B197: 184 | Q197: 0 | R197: 0
B198: 185 | Q198: 0 | R198: 0
B199: 186 | Q199: 0 | R199: 0
B200: 187 | Q200: 0 | R200: 0
B201: 188 | Q201: 0 | R201: 0
B202: 189 | Q202: 0 | R202: 0
B203: 190 | Q203: 0 | R203: 0
... 4811 more rows

Sheet referentiels (hidden)
A1: personne | B1: tauxBic | C1: id | I1: libelle | J1: idRefCouleur | L1: libelle | M1: taux | N1: idRefTypeTraction
A2: Personne physique | B2: 0.25 | C2: P | I2: Noir | J2: 1 | L2: Motorisée | M2: 1 | N2: 1
A3: Personne morale | B3: 0.25 | C3: M | I3: Blanc | J3: =J2+1 -> 2 | L3: Animale | M3: 0.25 | N3: 2
I4: Gris | J4: 3
A5: libelle | B5: montant_droit_fixe | C5: montant_droit_passager | D5: montant_droit_charge | E5: volume_charge_exonere | F5: isBic | G5: idRefActivitePatente | I5: Orange | J5: 4
A6: Transport terrestre de personnes | B6: 50400 | C6: 2520 | E6: 0 | F6: 1 | G6: 1 | I6: Bleu | J6: 5
A7: Transport maritime de personnes | B7: 75600 | C7: 1008 | E7: 0 | F7: 1 | G7: 2 | I7: Rouge | J7: 6
A8: Transport de marchandises | B8: 37800 | D8: 1008 | E8: 2 | F8: 1 | G8: 3 | I8: Vert | J8: 7
A9: Transport privé de marchandises (pour son propre compte) | B9: 24000 | D9: 1000 | E9: 3 | F9: 0 | G9: 4 | I9: Jaune | J9: 8
A10: Transport mixte : personnes et marchandises | B10: 50300 | C10: 2520 | D10: 1008 | E10: 2 | F10: 1 | G10: 5 | I10: Violet | J10: 9
A11: Corbillard au Régime Réel d'imposition | B11: 24000 | E11: 0 | F11: 1 | G11: 6 | I11: Marron | J11: 10
A12: Corbillard soumis à un autre Régime d'imposition | B12: 206000 | E12: 0 | F12: 1 | G12: 7 | I12: Beige | J12: 11
A13: Marchand forain | B13: 226800 | E13: 0 | F13: 1 | G13: 8 | I13: Rose | J13: 12
A15: droit_plancher | B15: droit_plafond | C15: base_bic_forfait | E15: langue Excel
A16: 0 | B16: 75601 | C16: 300000 | E16: =Langue() -> 1036
A17: 75602 | B17: 151199 | C17: 400000
A18: 151200 | B18: 230999 | C18: 500000
A19: 231000 | B19: - | C19: 600000
A21: Année | C21: codeTaxe | D21: type
A22: =YEAR(TODAY()) -> 2026 | C22: PATTRANS | D22: patente
A23: =YEAR(TODAY())-1 -> 2025
A25: libelle | B25: groupeOrdre | C25: idRefMarqueVehicule
A26: Alfa Romeo | B26: 1 | C26: 1
A27: Audi | B27: 1 | C27: =C26+1 -> 2
A28: BMW | B28: 1 | C28: =C27+1 -> 3
A29: Chevrolet | B29: 1 | C29: =C28+1 -> 4
A30: Citroën | B30: 1 | C30: =C29+1 -> 5
A31: Dacia | B31: 1 | C31: 6
A32: Daihatsu | B32: 1 | C32: 7
A33: Datsun | B33: 1 | C33: 8
A34: Fiat | B34: 1 | C34: 9
A35: Ford | B35: 1 | C35: 10
A36: Honda | B36: 1 | C36: 11
A37: Hyundai | B37: 1 | C37: 12
A38: Infiniti | B38: 1 | C38: 13
A39: Isuzu | B39: 1 | C39: 14
A40: Jeep | B40: 1 | C40: 15
A41: Kia | B41: 1 | C41: 16
A42: Lada | B42: 1 | C42: 17
A43: Lancia | B43: 1 | C43: 18
A44: Land Rover | B44: 1 | C44: 19
A45: Lexus | B45: 1 | C45: 20
A46: Mazda | B46: 1 | C46: 21
A47: Mercedes-Benz | B47: 1 | C47: 22
A48: Mitsubishi | B48: 1 | C48: 23
A49: Nissan | B49: 1 | C49: 24
A50: Opel | B50: 1 | C50: 25
A51: Peugeot | B51: 1 | C51: 26
A52: Renault | B52: 1 | C52: 27
A53: Seat | B53: 1 | C53: 28
A54: Skoda | B54: 1 | C54: 29
A55: SsangYong | B55: 1 | C55: 30
A56: Suzuki | B56: 1 | C56: 31
A57: Toyota | B57: 1 | C57: 32
A58: Vauxhall | B58: 1 | C58: 33
A59: Volkswagen | B59: 1 | C59: 34
A60: Volvo | B60: 1 | C60: 35
A61: Abarth | B61: 3 | C61: 36
A62: Acura | B62: 3 | C62: 37
A63: Alpina | B63: 3 | C63: 38
A64: Alpine | B64: 3 | C64: 39
A65: AMG | B65: 3 | C65: 40
A66: Aston Martin | B66: 3 | C66: 41
A67: Bentley | B67: 3 | C67: 42
A68: Brabus | B68: 3 | C68: 43
A69: Brilliance | B69: 3 | C69: 44
A70: Bugatti | B70: 3 | C70: 45
A71: Buick | B71: 3 | C71: 46
A72: Byton | B72: 3 | C72: 47
A73: Cadillac | B73: 3 | C73: 48
A74: Caterham | B74: 3 | C74: 49
A75: Chery | B75: 3 | C75: 50
A76: Chrysler | B76: 3 | C76: 51
A77: COURB | B77: 3 | C77: 52
A78: Cupra | B78: 3 | C78: 53
A79: Dallara | B79: 3 | C79: 54
A80: Derways | B80: 3 | C80: 55
A81: Diardi | B81: 3 | C81: 56
A82: Dodge | B82: 3 | C82: 57
A83: Dongfeng | B83: 3 | C83: 58
A84: Donkervoort | B84: 3 | C84: 59
A85: DS | B85: 3 | C85: 60
A86: Egy-Tech Engineering | B86: 3 | C86: 61
A87: Elibriea | B87: 3 | C87: 62
A88: Etox | B88: 3 | C88: 63
A89: FAW | B89: 3 | C89: 64
A90: Ferrari | B90: 3 | C90: 65
A91: Fisker | B91: 3 | C91: 66
A92: FSO | B92: 3 | C92: 67
A93: GAZ | B93: 3 | C93: 68
A94: Geely | B94: 3 | C94: =C93+1 -> 69
A95: Ginetta | B95: 3 | C95: 70
A96: GMC | B96: 3 | C96: 71
A97: Hafei | B97: 3 | C97: 72
A98: Hindustan Motors | B98: 3 | C98: 73
A99: Holden | B99: 3 | C99: 74
A100: Iran Khodro | B100: 3 | C100: 75
A101: IZh | B101: 3 | C101: 76
A102: Jaguar | B102: 3 | C102: 77
A103: Jiangling | B103: 3 | C103: 78
A104: Koenigsegg | B104: 3 | C104: 79
A105: Lamborghini | B105: 3 | C105: 80
A106: Landwind | B106: 3 | C106: 81
A107: Lincoln | B107: 3 | C107: 82
A108: Lobini | B108: 3 | C108: 83
A109: Lotus Cars | B109: 3 | C109: 84
A110: Luxgen | B110: 3 | C110: 85
A111: Mahindra | B111: 3 | C111: 86
A112: Maruti | B112: 3 | C112: 87
A113: Maserati | B113: 3 | C113: 88
A114: Mastretta | B114: 3 | C114: 89
A115: McLaren | B115: 3 | C115: 90
A116: MG | B116: 3 | C116: 91
A117: Mini | B117: 3 | C117: 92
A118: Mopar (depuis 2015) | B118: 3 | C118: 93
A119: Morgan | B119: 3 | C119: 94
A120: Nio | B120: 3 | C120: 95
A121: Noble | B121: 3 | C121: 96
A122: Pagani | B122: 3 | C122: 97
A123: Panoz | B123: 3 | C123: 98
A124: Pars Khodro | B124: 3 | C124: 99
A125: Perana | B125: 3 | C125: 100
A126: Perodua | B126: 3 | C126: 101
A127: PGO | B127: 3 | C127: 102
A128: Proton | B128: 3 | C128: 103
A129: Ram Trucks | B129: 3 | C129: 104
A130: Rolls-Royce | B130: 3 | C130: 105
A131: Saipa | B131: 3 | C131: 106
A132: Saker | B132: 3 | C132: 107
A133: Saleen | B133: 3 | C133: 108
A134: Samsung | B134: 3 | C134: 109
A135: Shelby | B135: 3 | C135: 110
A136: Smart | B136: 3 | C136: 111
A137: Spyker | B137: 3 | C137: 112
A138: SRT | B138: 3 | C138: 113
A139: Subaru | B139: 3 | C139: 114
A140: Tata Motors | B140: 3 | C140: 115
A141: Tesla | B141: 3 | C141: 116
A142: Troller | B142: 3 | C142: 117
A143: UAZ | B143: 3 | C143: 118
A144: Venturi Automobiles | B144: 3 | C144: 119
A145: VXR | B145: 3 | C145: 120
A146: W Motors | B146: 3 | C146: 121
A147: Wallyscar | B147: 3 | C147: 122
A148: Zastava | B148: 3 | C148: 123
A149: ZAZ | B149: 3 | C149: 124
A150: ZIL (anciennement ZIS | B150: 3 | C150: 125
A151: Autre | B151: 9 | C151: 126

Sheet TradXML (hidden)
A1: 1 | B1: ="<?xml version=""1.0"" encoding=""UTF-8""?><EDI><informations><type>"&type&"</type><ncc>"&ncc&"</ncc><codeTaxe>"&codeTaxe&"</codeTaxe><mois>1</mois><exercice>"&exercice&"</exercice></informations><tableaux><tableau><donnees>" -> <?xml version="1.0" encoding="UTF-8"?><EDI><informations><type>patente</type><ncc>1100418F</ncc><codeTaxe>PATTRANS</codeTaxe><mois>1</mois><exercice>2026</exercice></informations><tableaux><tableau><donnees> | C1: idRefPersonneType | D1: idRefActivitePatente | E1: nombre_passager | F1: charge | G1: immatriculation | H1: chassis | I1: carte_grise | J1: idRefMarqueVehicule | K1: numero_serie | L1: puissance_en_cv | M1: idRefTypeTraction | N1: idRefCouleur | O1: date_acquisition | P1: date_mise_en_service | Q1: montant_droit | R1: montant_bic | S1: montant_total | T1: idDoc
A2: =IF(B2="","",MAX(A1:A$1)+1) -> 2 | B2: =IF(SAISIE!R14=0,"","<ligne>"&C2&D2&E2&F2&G2&H2&I2&J2&K2&L2&M2&N2&O2&P2&Q2&R2&S2&T2&"</ligne>") -> <ligne><champ><code>idRefPersonneType</code><valeur>M</valeur></champ><champ><code>idRefActivitePatente</code><valeur>4</valeur></champ><champ><code>nombre_passager</code><valeur>5</valeur></champ><champ><code>charge</code><valeur>1</valeur></champ><champ><code>immatriculation</code><valeur>AB-501-BH-01</valeur></champ><champ><code>chassis</code><valeur>W09PRS218CTW86281</valeur></champ><champ><code>carte_grise</code><valeur>CG10703648</valeur></champ><champ><code>idRefMarqueVehicule</code><valeur>126</valeur></champ><champ><code>numero_serie</code><valeur>NA-WER</valeur></champ><champ><code>puissance_en_cv</code><valeur>0</valeur></champ><champ><code>idRefTypeTraction</code><valeur>1</valeur></champ><champ><code>idRefCouleur</code><valeur>2</valeur></champ><champ><code>date_acquisition</code><valeur>01/04/2026</valeur></champ><champ><code>date_mise_en_service</code><valeur>15/01/2000</valeur></champ><champ><code>montant_droit</code><valeur>24000</valeur></champ><champ><code>montant_bic</code><valeur>0</valeur></champ><champ><code>montant_total</code><valeur>24000</valeur></champ><champ><code>idDoc</code><valeur>0</valeur></champ></ligne> | C2: ="<champ><code>"&C$1&"</code><valeur>"&VLOOKUP(personneType,refPersonneType,3,FALSE)&"</valeur></champ>" -> <champ><code>idRefPersonneType</code><valeur>M</valeur></champ> | D2: ="<champ><code>"&D$1&"</code><valeur>"&VLOOKUP(SAISIE!C14,refActivitePatente,7,FALSE)&"</valeur></champ>" -> <champ><code>idRefActivitePatente</code><valeur>4</valeur></champ> | E2: ="<champ><code>"&E$1&"</code><valeur>"&IF(ISNUMBER(SAISIE!D14),SAISIE!D14,0)&"</valeur></champ>" -> <champ><code>nombre_passager</code><valeur>5</valeur></champ> | F2: ="<champ><code>"&F$1&"</code><valeur>"&IF(ISNUMBER(SAISIE!E14),SAISIE!E14,0)&"</valeur></champ>" -> <champ><code>charge</code><valeur>1</valeur></champ> | G2: ="<champ><code>"&G$1&"</code><valeur>"&SAISIE!F14&"</valeur></champ>" -> <champ><code>immatriculation</code><valeur>AB-501-BH-01</valeur></champ> | H2: ="<champ><code>"&H$1&"</code><valeur>"&SAISIE!G14&"</valeur></champ>" -> <champ><code>chassis</code><valeur>W09PRS218CTW86281</valeur></champ> | I2: ="<champ><code>"&I$1&"</code><valeur>"&SAISIE!H14&"</valeur></champ>" -> <champ><code>carte_grise</code><valeur>CG10703648</valeur></champ> | J2: ="<champ><code>"&J$1&"</code><valeur>"&IFERROR(VLOOKUP(SAISIE!I14,refMarqueVehicule,3,FALSE),"")&"</valeur></champ>" -> <champ><code>idRefMarqueVehicule</code><valeur>126</valeur></champ> | K2: ="<champ><code>"&K$1&"</code><valeur>"&SAISIE!J14&"</valeur></champ>" -> <champ><code>numero_serie</code><valeur>NA-WER</valeur></champ> | L2: ="<champ><code>"&L$1&"</code><valeur>"&IF(ISNUMBER(SAISIE!K14),SAISIE!K14,0)&"</valeur></champ>" -> <champ><code>puissance_en_cv</code><valeur>0</valeur></champ> | M2: ="<champ><code>"&M$1&"</code><valeur>1</valeur></champ>" -> <champ><code>idRefTypeTraction</code><valeur>1</valeur></champ> | N2: ="<champ><code>"&N$1&"</code><valeur>"&VLOOKUP(SAISIE!L14,refCouleur,2,FALSE)&"</valeur></champ>" -> <champ><code>idRefCouleur</code><valeur>2</valeur></champ> | O2: ="<champ><code>"&O$1&"</code><valeur>"&IF(SAISIE!C14<>"",IFERROR(IFERROR(TEXT(SAISIE!M14,"jj/mm/aaaa"),TEXT(SAISIE!M14,"dd/mm/yyyy")),DATE(YEAR(TODAY()),MONTH(TODAY())-1,1)),"")&"</valeur></champ>" -> <champ><code>date_acquisition</code><valeur>01/04/2026</valeur></champ> | P2: ="<champ><code>"&P$1&"</code><valeur>"&IF(SAISIE!C14<>"",IFERROR(IFERROR(TEXT(SAISIE!N14,"jj/mm/aaaa"),TEXT(SAISIE!N14,"dd/mm/yyyy")),DATE(YEAR(TODAY()),MONTH(TODAY())-1,1)),"")&"</valeur></champ>" -> <champ><code>date_mise_en_service</code><valeur>15/01/2000</valeur></champ> | Q2: ="<champ><code>"&Q$1&"</code><valeur>"&ROUND(SAISIE!O14,0)&"</valeur></champ>" -> <champ><code>montant_droit</code><valeur>24000</valeur></champ> | R2: ="<champ><code>"&R$1&"</code><valeur>"&ROUND(SAISIE!P14,0)&"</valeur></champ>" -> <champ><code>montant_bic</code><valeur>0</valeur></champ> | S2: ="<champ><code>"&S$1&"</code><valeur>"&ROUND(SAISIE!Q14,0)&"</valeur></champ>" -> <champ><code>montant_total</code><valeur>24000</valeur></champ> | T2: ="<champ><code>"&T$1&"</code><valeur>"&0&"</valeur></champ>" -> <champ><code>idDoc</code><valeur>0</valeur></champ>
A5002: =IF(B5002="","",MAX(A$1:A5001)+1) -> 3 | B5002: ="</donnees></tableau></tableaux></EDI>" -> </donnees></tableau></tableaux></EDI>
